fUST/lending_fUST_20240624
["ID","MTS","AMOUNT","RATE_DAILY","PERIOD"]
[330250970,1719209908892,-500.0,0.00017534,2]
[330250971,1719209908918,-500.0,0.00017534,2]
[330250972,1719209908945,-500.0,0.00017534,2]
[330250973,1719209908976,-500.0,0.00017534,2]
[330250974,1719209909003,-500.0,0.00017534,2]
[330250975,1719209909031,-500.0,0.00017534,2]
[330250976,1719209909059,-1336.04,0.00017534,2]
[330250977,1719209909088,-1199.69,0.00017534,2]
[330250978,1719209909117,-765.12,0.00017534,2]
[330250979,1719209909151,-570.77,0.00017534,2]
[330250980,1719209909180,-685.44,0.00017534,2]
[330250981,1719209909211,-500.0,0.00017534,2]
[330250982,1719209909242,-2123.15,0.00017534,2]
[330250983,1719209909272,-13622.58,0.00017534,2]
[330250984,1719209909301,-500.0,0.00017534,2]
[330250985,1719209909332,-804.64,0.00017534,2]
[330250986,1719209909360,-500.0,0.00017534,2]
[330250987,1719209909388,-500.0,0.00017534,2]
[330250988,1719209909418,-1118.44,0.00017534,2]
[330250989,1719209909447,-2941.94,0.00017534,2]
[330250990,1719209909479,-9774.41,0.00017534,2]
[330250991,1719209909509,-2514.25,0.00017534,2]
[330250992,1719209909536,-500.0,0.00017534,2]
[330250993,1719209909563,-500.0,0.00017534,2]
[330250994,1719209909590,-550.19,0.00017534,2]
[330250995,1719209909615,-500.0,0.00017534,2]
[330250996,1719209909641,-500.0,0.00017534,2]
[330250997,1719209909666,-151.0,0.00017534,2]
[330250998,1719209909691,-500.0,0.00017534,2]
[330250999,1719209909719,-2605.4,0.00017534,2]
[330251000,1719209909744,-500.0,0.00017534,2]
[330251001,1719209909770,-500.0,0.00017534,2]
[330251002,1719209909797,-258.23677029,0.00017534,2]
[330251003,1719209909825,-901.62,0.00017534,2]
[330251004,1719209909852,-500.0,0.00017534,2]
[330251005,1719209909879,-1622.09,0.00017534,2]
[330251006,1719209909906,-8115.72,0.00017534,2]
[330251007,1719209909933,-500.0,0.00017534,2]
[330251008,1719209909962,-1391.93,0.00017534,2]
[330251009,1719209909987,-530.59,0.00017534,2]
[330251010,1719209910015,-500.0,0.00017534,2]
[330251011,1719209910041,-500.0,0.00017534,2]
[330251012,1719209910067,-448.48812376,0.00017534,2]
[330251013,1719209910093,-500.0,0.00017534,2]
[330251014,1719209910120,-628.27,0.00017534,2]
[330251015,1719209910150,-500.0,0.00017534,2]
[330251016,1719209910175,-500.0,0.00017534,2]
[330251017,1719209910201,-500.0,0.00017534,2]
[330251018,1719209910231,-2112.59,0.00017534,2]
[330251019,1719209910259,-500.0,0.00017534,2]
[330251020,1719209910286,-1846.86,0.00017534,2]
[330251021,1719209910315,-423.07716302,0.00017534,2]
[330251022,1719209910343,-500.0,0.00017534,2]
[330251023,1719209910371,-5630.73,0.00017534,2]
[330251024,1719209910402,-500.0,0.00017534,2]
[330251025,1719209910441,-500.0,0.00017534,2]
[330251026,1719209910477,-500.0,0.00017534,2]
[330251027,1719209910509,-568.86,0.00017534,2]
[330251028,1719209910541,-2647.51345546,0.00017627,2]
[330251029,1719209910573,-13297.37001325,0.00017708,2]
[330251030,1719209910604,-621.09027498,0.00017767,2]
[330251031,1719209910637,-1102.94117698,0.00017796,2]
[330251032,1719209910669,-3923.79380918,0.00017796,2]
[330251033,1719209910697,-597.70730701,0.00017796,2]
[330251034,1719209910730,-947.4992689,0.00017796,2]
[330251035,1719209910760,-402.64531294,0.00017807,2]
[330251036,1719209910787,-402.64531294,0.00017807,2]
[330251037,1719209910817,-286.39912426,0.00017807,2]
[330251038,1719209910850,-284.64664354,0.00017807,2]
[330251039,1719209910883,-500.0,0.00017808,2]
[330251040,1719209910918,-500.0,0.00017808,2]
[330251041,1719209910953,-552.21464762,0.00017808,2]
[330251042,1719209910982,-500.0,0.00017808,2]
[330251043,1719209911011,-500.0,0.00017808,2]
[330251044,1719209911043,-500.0,0.00017808,2]
[330251045,1719209911073,-526.11,0.00017808,2]
[330251046,1719209911108,-500.0,0.00017808,2]
[330251047,1719209911138,-500.0,0.00017808,2]
[330251048,1719209911166,-1010.53,0.00017808,2]
[330251049,1719209911195,-500.0,0.00017808,2]
[330251050,1719209911228,-553.32,0.00017808,2]
[330251051,1719209911259,-500.0,0.00017808,2]
[330251052,1719209911289,-500.0,0.00017808,2]
[330251053,1719209911324,-500.0,0.00017808,2]
[330251054,1719209911356,-557.45831749,0.00017808,2]
[330251055,1719209911388,-500.0,0.00017808,2]
[330251056,1719209911421,-500.0,0.00017808,2]
[330251057,1719209911453,-500.0,0.00017808,2]
[330251058,1719209911489,-500.0,0.00017808,2]
[330251059,1719209911522,-500.0,0.00017808,2]
[330251060,1719209911554,-1336.04,0.00017808,2]
[330251061,1719209911584,-1199.69,0.00017808,2]
[330251062,1719209911613,-765.12,0.00017808,2]
[330251063,1719209911642,-570.77,0.00017808,2]
[330251064,1719209911671,-685.44,0.00017808,2]
[330251065,1719209911700,-500.0,0.00017808,2]
[330251066,1719209911731,-2123.15,0.00017808,2]
[330251067,1719209911762,-13622.58,0.00017808,2]
[330251068,1719209911796,-500.0,0.00017808,2]
[330251069,1719209911828,-804.64,0.00017808,2]
[330251070,1719209911859,-500.0,0.00017808,2]
[330251071,1719209911891,-500.0,0.00017808,2]
[330251072,1719209911922,-1118.44,0.00017808,2]
[330251073,1719209911953,-2941.94,0.00017808,2]
[330251074,1719209911987,-9774.41,0.00017808,2]
[330251075,1719209912018,-2514.25,0.00017808,2]
[330251076,1719209912047,-500.0,0.00017808,2]
[330251077,1719209912075,-500.0,0.00017808,2]
[330251078,1719209912106,-550.19,0.00017808,2]
[330251079,1719209912311,-500.0,0.00017808,2]
[330251080,1719209912340,-500.0,0.00017808,2]
[330251081,1719209912367,-151.0,0.00017808,2]
[330251082,1719209912394,-151.0,0.00017808,2]
[330251083,1719209912425,-500.0,0.00017808,2]
[330251084,1719209912455,-2605.4,0.00017808,2]
[330251085,1719209912485,-500.0,0.00017808,2]
[330251086,1719209912514,-500.0,0.00017808,2]
[330251087,1719209912540,-901.62,0.00017808,2]
[330251088,1719209912568,-500.0,0.00017808,2]
[330251089,1719209912594,-1622.09,0.00017808,2]
[330251090,1719209912620,-8115.72,0.00017808,2]
[330251091,1719209912646,-500.0,0.00017808,2]
[330251092,1719209912672,-1391.93,0.00017808,2]
[330251093,1719209912699,-530.59,0.00017808,2]
[330251094,1719209912729,-500.0,0.00017808,2]
[330251095,1719209912756,-500.0,0.00017808,2]
[330251096,1719209912785,-500.0,0.00017808,2]
[330251097,1719209912813,-628.27,0.00017808,2]
[330251098,1719209912842,-500.0,0.00017808,2]
[330251099,1719209912871,-500.0,0.00017808,2]
[330251100,1719209912900,-500.0,0.00017808,2]
[330251101,1719209912929,-2112.59,0.00017808,2]
[330251102,1719209912962,-500.0,0.00017808,2]
[330251103,1719209912989,-1846.86,0.00017808,2]
[330251104,1719209913020,-500.0,0.00017808,2]
[330251105,1719209913055,-5630.73,0.00017808,2]
[330251106,1719209913083,-500.0,0.00017808,2]
[330251107,1719209913112,-500.0,0.00017808,2]
[330251108,1719209913144,-500.0,0.00017808,2]
[330251109,1719209913173,-568.86,0.00017808,2]
[330251110,1719209913207,-157.894736,0.00017808,2]
[330251111,1719209913237,-195.47966853,0.00017865,2]
[330251112,1719209913268,-195.47966853,0.00017865,2]
[330251113,1719209913298,-318.0694556,0.00017865,2]
[330251114,1719209913328,-305.94677794,0.00017865,2]
[330251115,1719209913357,-1487.2316115,0.0001787,2]
[330251116,1719209913387,-177.91856369,0.0001787,2]
[330251117,1719209913417,-627.00263973,0.0001787,2]
[330251118,1719209913461,-154.77557542,0.0001787,2]
[330251119,1719209913501,-154.77557542,0.0001787,2]
[330251120,1719209913541,-155.90490314,0.0001787,2]
[330251121,1719209913579,-565.7746747,0.0001787,2]
[330251122,1719209913619,-490.28883306,0.00017892,2]
[330251123,1719209913659,-190.22424145,0.00017892,2]
[330251124,1719209913697,-1584.09393602,0.00017894,2]
[330251125,1719209913737,-401.65252924,0.00017894,2]
[330251126,1719209913772,-179.54081427,0.00017894,2]
[330251127,1719209913808,-177.01264341,0.00017899,2]
[330251128,1719209913843,-157.19006853,0.00017999,2]
[330251129,1719209913878,-1000.0,0.00018,10]
[330251130,1719209913913,-5926.19523831,0.00018,2]
[330251131,1719209913947,-190.27724997,0.00018,2]
[330251132,1719209914169,6972.7816651,0.00017483,2]
[330251133,1719209914310,10562.28786365,0.00017499,2]
[330251134,1719209914735,1584.09393602,0.00017892,2]
[330251135,1719209914803,1117.74863961,0.00016932,2]
[330251136,1719209914878,504.51931464,0.00016438,2]
[330251137,1719209914948,490.28883306,0.0001787,2]
[330251138,1719209915360,318.0694556,0.00017807,2]
[330251139,1719209915429,1487.2316115,0.00017865,2]
[330251140,1719209916521,195.47966853,0.00017807,2]
[330251141,1719209919570,157.19006853,0.00017978,2]
[330251142,1719209929623,-899.76,0.00016438,2]
[330251143,1719209929671,-500.0,0.00016438,2]
[330251144,1719209929719,-500.0,0.00016438,2]
[330251145,1719209929763,-899.76,0.00016712,2]
[330251146,1719209929805,-500.0,0.00016712,2]
[330251147,1719209929846,-899.76,0.00016986,2]
[330251148,1719209929886,-500.0,0.00016986,2]
[330251149,1719209929926,-899.76,0.0001726,2]
[330251150,1719209929966,-500.0,0.0001726,2]
[330251151,1719209930005,-899.76,0.00017534,2]
[330251152,1719209930044,-500.0,0.00017534,2]
[330251153,1719209930082,-1102.94117698,0.00017766,2]
[330251154,1719209930121,-899.76,0.00017808,2]
[330251155,1719209930162,-500.0,0.00017808,2]
[330251156,1719209930201,-490.28883306,0.0001787,2]
[330251157,1719209930245,-825.92070736,0.00018078,2]
[330251158,1719209930286,-825.34,0.00018079,2]
[330251159,1719209930326,-514.75,0.00018079,2]
[330251160,1719209930368,-500.0,0.00018079,2]
[330251161,1719209930408,-500.0,0.00018079,2]
[330251162,1719209930454,-500.0,0.00018079,2]
[330251163,1719209930500,-500.0,0.00018079,2]
[330251164,1719209930547,-500.0,0.00018079,2]
[330251165,1719209930594,-500.0,0.00018079,2]
[330251166,1719209930631,-500.0,0.00018079,2]
[330251167,1719209930669,-500.0,0.00018079,2]
[330251168,1719209930707,-500.0,0.00018079,2]
[330251169,1719209930754,-122624.71159645,0.0001808,2]
[330251170,1719209930797,-531.11088939,0.0001808,2]
[330251171,1719209930841,-1518.82536016,0.0001808,2]
[330251172,1719209930885,-154.77557542,0.0001808,2]
[330251173,1719209930928,-811.14465118,0.0001808,2]
[330251174,1719209930973,-20000.0,0.00018081,2]
[330251175,1719209931017,-500.0,0.00018082,2]
[330251176,1719209931058,-500.0,0.00018082,2]
[330251177,1719209931104,-500.0,0.00018082,2]
[330251178,1719209931148,-500.0,0.00018082,2]
[330251179,1719209931189,-500.0,0.00018082,2]
[330251180,1719209931231,-500.0,0.00018082,2]
[330251181,1719209931274,-500.0,0.00018082,2]
[330251182,1719209931316,-500.0,0.00018082,2]
[330251183,1719209931354,-331.45382834,0.00018082,2]
[330251184,1719209931394,-500.0,0.00018082,2]
[330251185,1719209931435,-500.0,0.00018082,2]
[330251186,1719209931477,-500.0,0.00018082,2]
[330251187,1719209931518,-500.0,0.00018082,2]
[330251188,1719209931558,-500.0,0.00018082,2]
[330251189,1719209931599,-500.0,0.00018082,2]
[330251190,1719209931639,-1336.04,0.00018082,2]
[330251191,1719209931811,-765.12,0.00018082,2]
[330251192,1719209931853,-570.77,0.00018082,2]
[330251193,1719209931896,-685.44,0.00018082,2]
[330251194,1719209931937,-500.0,0.00018082,2]
[330251195,1719209931978,-2123.15,0.00018082,2]
[330251196,1719209932021,-13622.58,0.00018082,2]
[330251197,1719209932065,-500.0,0.00018082,2]
[330251198,1719209932106,-804.64,0.00018082,2]
[330251199,1719209932145,-500.0,0.00018082,2]
[330251200,1719209932181,-500.0,0.00018082,2]
[330251201,1719209932220,-1118.44,0.00018082,2]
[330251202,1719209932260,-2941.94,0.00018082,2]
[330251203,1719209932300,-9774.41,0.00018082,2]
[330251204,1719209932338,-2514.25,0.00018082,2]
[330251205,1719209932377,-406.64379776,0.00018082,2]
[330251206,1719209932418,-500.0,0.00018082,2]
[330251207,1719209932456,-550.19,0.00018082,2]
[330251208,1719209932499,-500.0,0.00018082,2]
[330251209,1719209932540,-500.0,0.00018082,2]
[330251210,1719209932580,-151.0,0.00018082,2]
[330251211,1719209932620,-151.0,0.00018082,2]
[330251212,1719209932660,-500.0,0.00018082,2]
[330251213,1719209932701,-2605.4,0.00018082,2]
[330251214,1719209932743,-500.0,0.00018082,2]
[330251215,1719209932782,-500.0,0.00018082,2]
[330251216,1719209932821,-901.62,0.00018082,2]
[330251217,1719209932859,-500.0,0.00018082,2]
[330251218,1719209932897,-1622.09,0.00018082,2]
[330251219,1719209932936,-8115.72,0.00018082,2]
[330251220,1719209932974,-500.0,0.00018082,2]
[330251221,1719209933035,-1391.93,0.00018082,2]
[330251222,1719209933095,-530.59,0.00018082,2]
[330251223,1719209933157,-500.0,0.00018082,2]
[330251224,1719209933220,-500.0,0.00018082,2]
[330251225,1719209933279,-500.0,0.00018082,2]
[330251226,1719209933320,-628.27,0.00018082,2]
[330251227,1719209933362,-592.42020168,0.00018082,2]
[330251228,1719209933404,-500.0,0.00018082,2]
[330251229,1719209933447,-500.0,0.00018082,2]
[330251230,1719209933492,-2112.59,0.00018082,2]
[330251231,1719209933533,-500.0,0.00018082,2]
[330251232,1719209933572,-1846.86,0.00018082,2]
[330251233,1719209933612,-500.0,0.00018082,2]
[330251234,1719209933651,-5630.73,0.00018082,2]
[330251235,1719209933687,-500.0,0.00018082,2]
[330251236,1719209933724,-600.35408614,0.00018082,2]
[330251237,1719209933761,-500.0,0.00018082,2]
[330251238,1719209933797,-568.86,0.00018082,2]
[330251239,1719209933838,-899.76,0.00018082,2]
[330251240,1719209933878,-500.0,0.00018082,2]
[330251241,1719209933916,-159.35965211,0.00018192,2]
[330251242,1719209933955,-153.0,0.00018219,2]
[330251243,1719209933997,-153.0,0.00018219,2]
[330251244,1719209934039,-153.0,0.00018219,2]
[330251245,1719209934081,-153.0,0.00018219,2]
[330251246,1719209934122,-153.0,0.00018219,2]
[330251247,1719209934168,-825.34,0.00018353,2]
[330251248,1719209934210,-514.75,0.00018353,2]
[330251249,1719209934256,-500.0,0.00018353,2]
[330251250,1719209934297,-500.0,0.00018353,2]
[330251251,1719209934340,-290.85717697,0.00018353,2]
[330251252,1719209934382,-500.0,0.00018353,2]
[330251253,1719209934424,-500.0,0.00018353,2]
[330251254,1719209934467,-500.0,0.00018353,2]
[330251255,1719209934510,-500.0,0.00018356,2]
[330251256,1719209934550,-500.0,0.00018356,2]
[330251257,1719209934593,-500.0,0.00018356,2]
[330251258,1719209934634,-500.0,0.00018356,2]
[330251259,1719209934671,-526.85027264,0.00018356,2]
[330251260,1719209934712,-500.0,0.00018356,2]
[330251261,1719209934755,-500.0,0.00018356,2]
[330251262,1719209934808,-500.0,0.00018356,2]
[330251263,1719209934875,-500.0,0.00018356,2]
[330251264,1719209934944,-500.0,0.00018356,2]
[330251265,1719209935012,-500.0,0.00018356,2]
[330251266,1719209935075,-500.0,0.00018356,2]
[330251267,1719209935125,-500.0,0.00018356,2]
[330251268,1719209935171,-500.0,0.00018356,2]
[330251269,1719209935222,-1336.04,0.00018356,2]
[330251270,1719209935270,-765.12,0.00018356,2]
[330251271,1719209935324,-570.77,0.00018356,2]
[330251272,1719209935373,-685.44,0.00018356,2]
[330251273,1719209935416,-500.0,0.00018356,2]
[330251274,1719209935459,-2123.15,0.00018356,2]
[330251275,1719209935501,-13622.58,0.00018356,2]
[330251276,1719209935541,-500.0,0.00018356,2]
[330251277,1719209935707,-804.64,0.00018356,2]
[330251278,1719209935751,-500.0,0.00018356,2]
[330251279,1719209935792,-500.0,0.00018356,2]
[330251280,1719209935835,-1118.44,0.00018356,2]
[330251281,1719209935876,-2941.94,0.00018356,2]
[330251282,1719209935918,-9774.41,0.00018356,2]
[330251283,1719209935960,-2514.25,0.00018356,2]
[330251284,1719209936004,-500.0,0.00018356,2]
[330251285,1719209936046,-550.19,0.00018356,2]
[330251286,1719209936087,-500.0,0.00018356,2]
[330251287,1719209936125,-500.0,0.00018356,2]
[330251288,1719209936168,-151.0,0.00018356,2]
[330251289,1719209936210,-151.0,0.00018356,2]
[330251290,1719209936257,-500.0,0.00018356,2]
[330251291,1719209936299,-2605.4,0.00018356,2]
[330251292,1719209936342,-500.0,0.00018356,2]
[330251293,1719209936380,-500.0,0.00018356,2]
[330251294,1719209936419,-901.62,0.00018356,2]
[330251295,1719209936458,-500.0,0.00018356,2]
[330251296,1719209936508,-1622.09,0.00018356,2]
[330251297,1719209936572,-8115.72,0.00018356,2]
[330251298,1719209936636,-500.0,0.00018356,2]
[330251299,1719209936702,-1391.93,0.00018356,2]
[330251300,1719209936747,-530.59,0.00018356,2]
[330251301,1719209936787,-500.0,0.00018356,2]
[330251302,1719209936825,-500.0,0.00018356,2]
[330251303,1719209936864,-500.0,0.00018356,2]
[330251304,1719209936902,-628.27,0.00018356,2]
[330251305,1719209936939,-500.0,0.00018356,2]
[330251306,1719209936977,-500.0,0.00018356,2]
[330251307,1719209937015,-2112.59,0.00018356,2]
[330251308,1719209937054,-500.0,0.00018356,2]
[330251309,1719209937093,-1846.86,0.00018356,2]
[330251310,1719209937132,-500.0,0.00018356,2]
[330251311,1719209937178,-5630.73,0.00018356,2]
[330251312,1719209937221,-500.0,0.00018356,2]
[330251313,1719209937263,-500.0,0.00018356,2]
[330251314,1719209937305,-568.86,0.00018356,2]
[330251315,1719209937346,-899.76,0.00018356,2]
[330251316,1719209937386,-500.0,0.00018356,2]
[330251317,1719209937425,-524.41677193,0.00018529,2]
[330251318,1719209937467,-524.41677193,0.00018529,2]
[330251319,1719209937506,-825.34,0.00018627,2]
[330251320,1719209937544,-514.75,0.00018627,2]
[330251321,1719209937581,-500.0,0.00018627,2]
[330251322,1719209937621,-500.0,0.00018627,2]
[330251323,1719209937658,-500.0,0.00018627,2]
[330251324,1719209937696,-500.0,0.00018627,2]
[330251325,1719209937734,-500.0,0.00018627,2]
[330251326,1719209937772,-500.0,0.0001863,2]
[330251327,1719209937811,-500.0,0.0001863,2]
[330251328,1719209937849,-500.0,0.0001863,2]
[330251329,1719209937885,-500.0,0.0001863,2]
[330251330,1719209937925,-314.66129407,0.0001863,2]
[330251331,1719209937964,-500.0,0.0001863,2]
[330251332,1719209938021,-500.0,0.0001863,2]
[330251333,1719209938070,-542.45807671,0.0001863,2]
[330251334,1719209938118,-500.0,0.0001863,2]
[330251335,1719209938165,-500.0,0.0001863,2]
[330251336,1719209938209,-500.0,0.0001863,2]
[330251337,1719209938256,-500.0,0.0001863,2]
[330251338,1719209938298,-500.0,0.0001863,2]
[330251339,1719209938345,-1336.04,0.0001863,2]
[330251340,1719209938411,-160.602511,0.0001863,2]
[330251341,1719209938484,-151.0,0.0001863,2]
[330251342,1719209938558,-765.12,0.0001863,2]
[330251343,1719209938601,-570.77,0.0001863,2]
[330251344,1719209938645,-685.44,0.0001863,2]
[330251345,1719209938689,-500.0,0.0001863,2]
[330251346,1719209938733,-2123.15,0.0001863,2]
[330251347,1719209938777,-13622.58,0.0001863,2]
[330251348,1719209938819,-500.0,0.0001863,2]
[330251349,1719209938865,-804.64,0.0001863,2]
[330251350,1719209938907,-500.0,0.0001863,2]
[330251351,1719209938948,-500.0,0.0001863,2]
[330251352,1719209938993,-1118.44,0.0001863,2]
[330251353,1719209939036,-2941.94,0.0001863,2]
[330251354,1719209939077,-9774.41,0.0001863,2]
[330251355,1719209939118,-2514.25,0.0001863,2]
[330251356,1719209939159,-500.0,0.0001863,2]
[330251357,1719209939201,-550.19,0.0001863,2]
[330251358,1719209939245,-500.0,0.0001863,2]
[330251359,1719209939287,-500.0,0.0001863,2]
[330251360,1719209939330,-151.0,0.0001863,2]
[330251361,1719209939371,-151.0,0.0001863,2]
[330251362,1719209939412,-500.0,0.0001863,2]
[330251363,1719209939456,-2605.4,0.0001863,2]
[330251364,1719209939645,-500.0,0.0001863,2]
[330251365,1719209939686,-500.0,0.0001863,2]
[330251366,1719209939731,-901.62,0.0001863,2]
[330251367,1719209939772,-500.0,0.0001863,2]
[330251368,1719209939813,-1622.09,0.0001863,2]
[330251369,1719209939854,-8115.72,0.0001863,2]
[330251370,1719209939895,-500.0,0.0001863,2]
[330251371,1719209939934,-1391.93,0.0001863,2]
[330251372,1719209939980,-530.59,0.0001863,2]
[330251373,1719209940021,-500.0,0.0001863,2]
[330251374,1719209940059,-500.0,0.0001863,2]
[330251375,1719209940098,-500.0,0.0001863,2]
[330251376,1719209940136,-628.27,0.0001863,2]
[330251377,1719209940177,-500.0,0.0001863,2]
[330251378,1719209940217,-500.0,0.0001863,2]
[330251379,1719209940264,-2112.59,0.0001863,2]
[330251380,1719209940303,-500.0,0.0001863,2]
[330251381,1719209940345,-1846.86,0.0001863,2]
[330251382,1719209940384,-500.0,0.0001863,2]
[330251383,1719209940426,-500.0,0.0001863,2]
[330251384,1719209940474,-5630.73,0.0001863,2]
[330251385,1719209940523,-500.0,0.0001863,2]
[330251386,1719209940570,-568.86,0.0001863,2]
[330251387,1719209940621,-899.76,0.0001863,2]
[330251388,1719209940670,-500.0,0.0001863,2]
[330251389,1719209940711,-620.05451375,0.00018655,2]
[330251390,1719209940753,-160.0,0.0001869,3]
[330251391,1719209940790,-154.77557542,0.00018707,2]
[330251392,1719209940828,-1062.9540175,0.00018799,2]
[330251393,1719209940866,-160.0,0.00018835,4]
[330251394,1719209940903,-757.78264509,0.00018899,2]
[330251395,1719209940940,-151.0,0.000189,2]
[330251396,1719209940976,-12416.22371746,0.000189,2]
[330251397,1719209941014,-807931.908035,0.000189,2]
[330251398,1719209941051,-825.34,0.00018901,2]
[330251399,1719209941089,-514.75,0.00018901,2]
[330251400,1719209941126,-500.0,0.00018901,2]
[330251401,1719209941168,-500.0,0.00018901,2]
[330251402,1719209941209,-500.0,0.00018901,2]
[330251403,1719209941253,-500.0,0.00018901,2]
[330251404,1719209941295,-500.0,0.00018901,2]
[330251405,1719209941335,-154.77557542,0.00018903,2]
[330251406,1719209941374,-500.0,0.00018904,2]
[330251407,1719209941413,-500.0,0.00018904,2]
[330251408,1719209941452,-500.0,0.00018904,2]
[330251409,1719209941494,-460.49930718,0.00018904,2]
[330251410,1719209941532,-500.0,0.00018904,2]
[330251411,1719209941571,-500.0,0.00018904,2]
[330251412,1719209941608,-500.0,0.00018904,2]
[330251413,1719209941645,-500.0,0.00018904,2]
[330251414,1719209941683,-500.0,0.00018904,2]
[330251415,1719209941725,-500.0,0.00018904,2]
[330251416,1719209941762,-500.0,0.00018904,2]
[330251417,1719209941804,-1336.04,0.00018904,2]
[330251418,1719209941843,-765.12,0.00018904,2]
[330251419,1719209941882,-570.77,0.00018904,2]
[330251420,1719209941923,-685.44,0.00018904,2]
[330251421,1719209941963,-500.0,0.00018904,2]
[330251422,1719209942008,-2123.15,0.00018904,2]
[330251423,1719209942049,-13622.58,0.00018904,2]
[330251424,1719209942090,-500.0,0.00018904,2]
[330251425,1719209942436,-804.64,0.00018904,2]
[330251426,1719209942477,-151.66561575,0.00018904,2]
[330251427,1719209942518,-500.0,0.00018904,2]
[330251428,1719209942560,-1118.44,0.00018904,2]
[330251429,1719209942605,-2941.94,0.00018904,2]
[330251430,1719209942647,-9774.41,0.00018904,2]
[330251431,1719209942689,-2514.25,0.00018904,2]
[330251432,1719209942731,-500.0,0.00018904,2]
[330251433,1719209942772,-550.19,0.00018904,2]
[330251434,1719209942812,-500.0,0.00018904,2]
[330251435,1719209942854,-151.0,0.00018904,2]
[330251436,1719209942893,-500.0,0.00018904,2]
[330251437,1719209942932,-151.0,0.00018904,2]
[330251438,1719209942972,-500.0,0.00018904,2]
[330251439,1719209943011,-2605.4,0.00018904,2]
[330251440,1719209943050,-500.0,0.00018904,2]
[330251441,1719209943089,-500.0,0.00018904,2]
[330251442,1719209943128,-901.62,0.00018904,2]
[330251443,1719209943173,-500.0,0.00018904,2]
[330251444,1719209943215,-1622.09,0.00018904,2]
[330251445,1719209943262,-8115.72,0.00018904,2]
[330251446,1719209943306,-500.0,0.00018904,2]
[330251447,1719209943349,-1391.93,0.00018904,2]
[330251448,1719209943391,-530.59,0.00018904,2]
[330251449,1719209943435,-500.0,0.00018904,2]
[330251450,1719209943605,-500.0,0.00018904,2]
[330251451,1719209943648,-500.0,0.00018904,2]
[330251452,1719209943690,-628.27,0.00018904,2]
[330251453,1719209943731,-500.0,0.00018904,2]
[330251454,1719209943772,-500.0,0.00018904,2]
[330251455,1719209943813,-2112.59,0.00018904,2]
[330251456,1719209943855,-500.0,0.00018904,2]
[330251457,1719209943894,-1846.86,0.00018904,2]
[330251458,1719209943932,-500.0,0.00018904,2]
[330251459,1719209943970,-500.0,0.00018904,2]
[330251460,1719209944012,-5630.73,0.00018904,2]
[330251461,1719209944050,-500.0,0.00018904,2]
[330251462,1719209944089,-568.86,0.00018904,2]
[330251463,1719209944135,-899.76,0.00018904,2]
[330251464,1719209944183,-500.0,0.00018904,2]
[330251465,1719209944223,-151.0,0.00018904,2]
[330251466,1719209944266,-151.0,0.00018904,2]
[330251467,1719209944307,-151.0,0.00018904,2]
[330251468,1719209944348,-160.0,0.0001898,5]
[330251469,1719209944388,-154.77557542,0.00018989,2]